bitfinex/quotes_BTCUSD_20240712
["timestamp","ask_amount","ask_price","bid_price","bid_amount"]
[1720764323677,0.01803183,57236.0,57235.0,0.147013]
[1720764323931,0.01803183,57236.0,57235.0,0.197013]
[1720764330168,0.01803183,57236.0,57235.0,0.19528826]
[1720764331933,0.04115253,57236.0,57235.0,0.19528826]
[1720764340196,0.04115253,57236.0,57235.0,0.14528826]
[1720764340402,0.04115253,57236.0,57235.0,0.19528826]
[1720764341203,0.04115253,57236.0,57235.0,0.14528826]
[1720764341408,0.04115253,57236.0,57235.0,0.026913]
[1720764341409,0.04815253,57236.0,57235.0,0.026913]
[1720764341611,1.98430188,57236.0,57235.0,0.026913]
[1720764341877,1.46785753,57236.0,57235.0,0.026913]
[1720764342088,1.54975753,57236.0,57235.0,0.026913]
[1720764342583,1.54975753,57236.0,57235.0,0.014913]
[1720764343809,1.71999493,57236.0,57235.0,0.000913]
[1720764344015,1.72099493,57236.0,57235.0,0.001913]
[1720764344164,1.55175753,57236.0,57235.0,0.001913]
[1720764344386,1.55075753,57236.0,57235.0,0.001913]
[1720764344589,1.55075753,57236.0,57235.0,0.000913]
[1720764344747,1.55175753,57236.0,57235.0,0.001913]
[1720764345554,1.72199493,57236.0,57235.0,0.001913]
[1720764347497,0.873757,57224.0,57223.0,0.04953196]
[1720764347701,1.025657,57224.0,57223.0,0.04953196]
[1720764347948,1.025657,57224.0,57220.0,0.0833]
[1720764347949,0.524283,57221.0,57220.0,0.0833]
[1720764348474,0.54754812,57221.0,57220.0,0.0833]
[1720764349717,0.89707012,57221.0,57220.0,0.0833]
[1720764350806,0.89707012,57221.0,57210.0,0.1446]
[1720764350807,0.07,57218.0,57210.0,0.1446]
[1720764351023,0.20516512,57221.0,57210.0,0.1446]
[1720764351024,0.524374,57211.0,57210.0,0.1446]
[1720764351279,0.524374,57211.0,57209.0,0.04933124]
[1720764351280,0.174794,57210.0,57209.0,0.04933124]
[1720764351415,0.524428,57205.0,57204.0,0.062813]
[1720764351809,0.89728039,57205.0,57204.0,0.062813]
[1720764352053,1.41689939,57205.0,57204.0,0.000913]
[1720764352251,1.90273679,57205.0,57204.0,0.000913]
[1720764352486,1.73249939,57205.0,57204.0,0.000913]
[1720764353440,1.73249939,57205.0,57204.0,0.004913]
[1720764354023,0.99728039,57205.0,57204.0,0.004913]
[1720764354221,0.12423339,57205.0,57204.0,0.010913]
[1720764354554,0.02323339,57205.0,57204.0,0.81045]
[1720764354884,0.02554668,57215.0,57209.0,0.05]
[1720764355086,0.02554668,57215.0,57206.0,0.048]
[1720764355211,0.174803,57207.0,57206.0,0.048]
[1720764355406,0.174803,57207.0,57205.0,0.048]
[1720764357441,0.174806,57206.0,57204.0,0.167113]
[1720764358076,0.174806,57206.0,57204.0,0.154113]
[1720764358224,0.174806,57206.0,57205.0,0.006]
[1720764358639,0.349601,57208.0,57205.0,0.048]
[1720764358640,0.174805,57207.0,57205.0,0.048]
[1720764358964,0.174805,57207.0,57205.0,0.052]
[1720764359184,0.174806,57206.0,57205.0,0.052]
[1720764359335,0.174806,57206.0,57205.0,0.048]
[1720764359741,0.174806,57206.0,57205.0,0.052]
[1720764360143,0.174806,57207.0,57205.0,0.052]
[1720764360470,0.174806,57206.0,57205.0,0.052]
[1720764360686,0.174801,57208.0,57206.0,0.048]
[1720764361104,0.174806,57206.0,57205.0,0.01]
[1720764361307,0.524419,57206.0,57205.0,0.01]
[1720764362033,0.524419,57206.0,57205.0,0.004]
[1720764362157,0.174809,57205.0,57204.0,0.150113]
[1720764363882,0.02535186,57211.0,57204.0,0.150113]
[1720764363883,0.174806,57207.0,57204.0,0.150113]
[1720764364086,0.174806,57207.0,57205.0,0.005]
[1720764364256,0.174806,57206.0,57205.0,0.048]
[1720764365363,0.174806,57206.0,57205.0,0.052]
[1720764365566,0.174806,57206.0,57205.0,0.048]
[1720764366357,0.174806,57206.0,57205.0,0.051]
[1720764367306,0.174806,57206.0,57205.0,0.057]
[1720764369110,0.174803,57207.0,57206.0,0.048]
[1720764369308,0.20055828,57214.0,57213.0,0.048]
[1720764369549,0.174785,57213.0,57212.0,0.048]
[1720764369758,0.274785,57213.0,57212.0,0.048]
[1720764371749,0.277785,57213.0,57212.0,0.048]
[1720764372626,0.107,57213.0,57212.0,0.048]
[1720764373153,0.007,57213.0,57212.0,0.364988]
[1720764373351,0.007,57213.0,57212.0,0.714565]
[1720764373957,0.004,57213.0,57212.0,0.714565]
[1720764374377,0.004,57213.0,57212.0,0.728565]
[1720764374779,0.02536723,57219.0,57218.0,0.048]
[1720764375005,0.0174,57225.0,57224.0,0.048]
[1720764375181,0.821463,57231.0,57225.0,0.048]
[1720764375526,0.349475,57229.0,57221.0,0.1961]
[1720764375763,0.349487,57227.0,57221.0,0.1961]
[1720764375951,0.349487,57227.0,57225.0,0.048]
[1720764375952,0.174745,57226.0,57225.0,0.048]
[1720764376584,0.174748,57225.0,57221.0,0.1481]
[1720764376714,0.1,57224.0,57221.0,0.1481]
[1720764376922,0.1,57224.0,57221.0,0.1961]
[1720764377997,0.1,57224.0,57222.0,0.048]
[1720764378365,0.1,57224.0,57221.0,0.1501]
[1720764378510,0.274752,57224.0,57221.0,0.1501]
[1720764379982,0.1,57224.0,57221.0,0.1981]
[1720764380174,0.1,57225.0,57221.0,0.1981]
[1720764380614,0.1,57225.0,57221.0,0.1501]
[1720764380615,0.449498,57225.0,57221.0,0.1501]
[1720764380816,0.174753,57224.0,57221.0,0.1501]
[1720764380991,0.1,57223.0,57221.0,0.1501]
[1720764381130,0.1,57223.0,57221.0,0.1481]
[1720764381536,0.1,57223.0,57221.0,0.1491]
[1720764381743,0.1,57223.0,57221.0,0.1481]
[1720764381941,0.1,57223.0,57221.0,0.1961]
[1720764382210,0.1,57223.0,57221.0,0.1981]
[1720764382406,0.1,57223.0,57221.0,0.1961]
[1720764383865,0.1,57223.0,57221.0,0.1971]
[1720764384501,0.1,57223.0,57221.0,0.2001]
[1720764385985,0.1,57223.0,57221.0,0.1521]
[1720764388241,0.12463389,57223.0,57221.0,0.1521]
[1720764388487,0.01936156,57222.0,57221.0,0.1521]
[1720764389246,0.01936156,57222.0,57221.0,0.1491]
[1720764389446,0.01936156,57222.0,57221.0,0.1961]
[1720764389649,0.01936156,57222.0,57221.0,0.2031]
[1720764393770,0.01936156,57222.0,57221.0,0.2849]
[1720764394000,0.00083,57227.0,57226.0,0.048]
[1720764394230,0.10083,57227.0,57226.0,0.19180316]
[1720764394972,0.10083,57227.0,57226.0,0.19150632]
[1720764395364,0.10283,57227.0,57226.0,0.19150632]
[1720764395537,0.00283,57227.0,57226.0,0.27330632]
[1720764396738,0.00083,57227.0,57226.0,0.27330632]
[1720764396940,0.00383,57227.0,57226.0,0.27330632]
[1720764397521,0.00083,57227.0,57226.0,0.27330632]
[1720764397718,0.00083,57227.0,57226.0,0.27530632]
[1720764398238,0.00083,57227.0,57226.0,0.28030632]
[1720764399309,0.00083,57227.0,57226.0,0.45505132]
[1720764400915,0.350266,57236.0,57232.0,0.04740632]
[1720764401150,0.17472,57235.0,57233.0,0.00306353]
[1720764401333,0.19418205,57235.0,57233.0,0.05046985]
[1720764401529,0.19418205,57235.0,57233.0,0.12926985]
[1720764401849,0.01946205,57235.0,57234.0,0.10950632]
[1720764402283,0.01946205,57235.0,57234.0,0.11256985]
[1720764403043,0.02446205,57235.0,57234.0,0.06516353]
[1720764403268,0.01946205,57235.0,57234.0,0.11256985]
[1720764404245,0.02046205,57235.0,57234.0,0.11356985]
[1720764404647,0.01946205,57235.0,57234.0,0.11256985]
[1720764404996,0.01946205,57235.0,57234.0,0.11856985]
[1720764405201,0.01946205,57235.0,57234.0,1.62651104]
[1720764405406,0.00083,57236.0,57235.0,0.69156032]
[1720764405607,0.00083,57236.0,57235.0,1.53513232]
[1720764406907,0.00083,57236.0,57235.0,1.06569632]
[1720764407115,0.00083,57236.0,57235.0,0.79806032]
[1720764407311,0.00083,57236.0,57235.0,0.27390632]
[1720764407996,0.00083,57236.0,57235.0,0.30190632]
[1720764408194,0.174706,57239.0,57236.0,0.04740632]
[1720764408419,0.01946205,57236.0,57235.0,0.1587]
[1720764408663,0.17471,57238.0,57236.0,0.00306353]
[1720764408851,0.174706,57239.0,57236.0,0.05046985]
[1720764409060,0.174706,57239.0,57236.0,0.04740632]
[1720764409262,0.01946205,57238.0,57236.0,0.04740632]
[1720764409464,0.01946205,57238.0,57237.0,0.00306353]
[1720764409861,0.01946205,57238.0,57237.0,0.19146985]
[1720764410026,0.01946205,57238.0,57237.0,0.44491832]
[1720764410407,0.03270004,57244.0,57242.0,0.00306353]
[1720764410606,0.00827,57244.0,57243.0,0.1453]
[1720764410923,0.00827,57244.0,57243.0,0.19270632]
[1720764411901,0.00827,57244.0,57243.0,0.1453]
[1720764412224,0.00827,57244.0,57243.0,0.1523]
[1720764412535,0.10827,57244.0,57243.0,0.1623]
[1720764412741,0.00827,57244.0,57243.0,1.4360542]
[1720764412942,0.00827,57244.0,57243.0,1.2066672]
[1720764413645,0.00827,57244.0,57243.0,1.1996672]
[1720764414055,0.00827,57244.0,57243.0,1.19973073]
[1720764414461,0.00827,57244.0,57243.0,1.19273073]
[1720764414836,0.00827,57244.0,57243.0,1.20273073]
[1720764415442,0.00827,57244.0,57243.0,1.20473073]
[1720764415652,0.00827,57244.0,57243.0,1.21673073]
[1720764415858,0.00827,57244.0,57243.0,1.20473073]
[1720764416001,0.00827,57244.0,57243.0,1.56811773]
[1720764416345,0.00827,57244.0,57243.0,1.5650542]
[1720764419605,0.00827,57244.0,57243.0,1.56156032]
[1720764419823,0.00827,57244.0,57243.0,1.09217332]
[1720764420025,0.00827,57244.0,57243.0,0.74278632]
[1720764420663,0.00827,57244.0,57243.0,0.86278632]
[1720764421101,0.00827,57244.0,57243.0,1.21217332]
[1720764421284,0.00827,57244.0,57243.0,0.026]
[1720764421528,0.10827,57244.0,57243.0,0.026]
[1720764421700,0.12462802,57244.0,57243.0,0.07340632]
[1720764422108,0.12462802,57244.0,57243.0,0.13560632]
[1720764422728,0.02462802,57244.0,57243.0,0.13560632]
[1720764423294,0.02458802,57244.0,57243.0,0.13560632]
[1720764427968,0.02458802,57244.0,57243.0,0.026]
[1720764427969,0.19927802,57244.0,57243.0,0.026]
[1720764428187,0.29927802,57244.0,57243.0,0.026]
[1720764429132,0.01633849,57244.0,57243.0,0.026]
[1720764429358,0.01633849,57244.0,57243.0,0.07340632]
[1720764429499,0.17469,57244.0,57243.0,0.07340632]
[1720764429827,0.18830215,57244.0,57243.0,0.07340632]
[1720764430195,0.18830215,57244.0,57243.0,0.026]
[1720764430614,0.53768315,57244.0,57243.0,0.026]
[1720764431446,0.63768315,57244.0,57243.0,0.026]
[1720764431858,0.98706415,57244.0,57243.0,0.026]
[1720764433494,0.98706415,57244.0,57243.0,0.07340632]
[1720764433495,0.63768315,57244.0,57243.0,0.07340632]
[1720764433918,0.28830215,57244.0,57243.0,0.07340632]
[1720764434720,0.29106855,57244.0,57243.0,0.07340632]
[1720764435325,0.64044955,57244.0,57243.0,0.026]
[1720764435684,0.11637855,57244.0,57243.0,0.22020632]
[1720764436274,0.29106855,57244.0,57243.0,0.22020632]
[1720764436475,0.29106855,57244.0,57243.0,0.1728]
[1720764436628,0.64044955,57244.0,57243.0,0.1728]
[1720764436834,0.98983055,57244.0,57243.0,0.026]
[1720764437723,0.98983055,57244.0,57243.0,0.014]
[1720764437896,0.174701,57241.0,57239.0,0.04740632]
[1720764438198,0.174701,57241.0,57238.0,0.1463]
[1720764438199,0.174701,57241.0,57240.0,0.04740632]
[1720764438588,0.1774674,57241.0,57240.0,0.04740632]
[1720764439023,0.0027664,57241.0,57240.0,0.04740632]
[1720764439426,0.0027664,57241.0,57240.0,0.10930632]
[1720764439990,0.0027664,57241.0,57240.0,0.11930632]
[1720764440235,0.0027664,57241.0,57240.0,0.19800632]
[1720764440881,0.0027664,57241.0,57240.0,0.20500632]
[1720764443799,0.0027664,57241.0,57240.0,0.20849996]
[1720764444343,0.0027664,57241.0,57240.0,0.33156349]
[1720764444730,0.0027664,57241.0,57240.0,0.50626649]
[1720764444905,0.0027664,57241.0,57240.0,0.50320296]
[1720764447215,0.0027664,57241.0,57240.0,0.85260896]
[1720764447468,0.0027664,57241.0,57240.0,0.85352196]
[1720764447695,0.0027664,57241.0,57240.0,0.73352196]
[1720764448504,0.0027664,57241.0,57240.0,0.85352196]
[1720764448704,0.0027664,57241.0,57240.0,0.73352196]
[1720764448865,0.0027664,57241.0,57240.0,1.20292796]
[1720764449887,0.0027664,57241.0,57240.0,2.40264632]
[1720764450093,0.00083,57246.0,57245.0,0.83716832]
[1720764450296,0.00083,57246.0,57245.0,1.53591832]
[1720764451352,0.00083,57246.0,57245.0,1.54991832]
[1720764453152,0.00083,57246.0,57245.0,1.42991832]
[1720764453342,0.00083,57246.0,57245.0,1.54991832]
[1720764453694,0.00083,57246.0,57245.0,1.56391832]
[1720764456578,0.00083,57246.0,57245.0,1.86831832]
[1720764456781,0.00083,57246.0,57245.0,1.89131832]
[1720764456978,0.00083,57246.0,57245.0,0.74516832]
[1720764457183,0.00083,57246.0,57245.0,0.86516832]
[1720764457720,0.00083,57246.0,57245.0,0.51579332]
[1720764457922,0.00083,57246.0,57245.0,0.74516832]
[1720764458123,0.00083,57246.0,57245.0,0.86516832]
[1720764463644,0.00083,57246.0,57245.0,1.85343267]
[1720764464208,0.00083,57246.0,57245.0,2.50280767]
[1720764464381,0.00083,57246.0,57245.0,2.52580767]
[1720764466862,0.00083,57246.0,57245.0,2.62580767]
[1720764467280,0.00827,57248.0,57247.0,2.13953932]
[1720764467495,0.00827,57248.0,57247.0,2.83290232]
[1720764468105,0.00828,57257.0,57250.0,2.46735432]
[1720764468331,0.00828,57257.0,57256.0,1.09136832]
[1720764468534,0.025,57264.0,57263.0,1.78983332]
[1720764468746,0.025,57264.0,57263.0,1.48856832]
[1720764468952,0.025,57264.0,57263.0,1.83783332]
[1720764469157,0.025,57264.0,57263.0,0.49540632]
[1720764469360,0.025,57264.0,57263.0,0.36563832]
[1720764469567,0.025,57264.0,57263.0,0.71490332]
[1720764469769,0.001,57269.0,57264.0,0.34203532]
[1720764470323,0.001,57269.0,57264.0,1.04055332]
[1720764471314,0.001,57269.0,57264.0,1.05455332]
[1720764471530,0.001,57269.0,57264.0,1.92092667]
[1720764471736,0.001,57269.0,57264.0,2.04392667]
[1720764471945,0.001,57269.0,57264.0,2.07192667]
[1720764472146,0.001,57269.0,57264.0,2.05792667]
[1720764472362,0.001,57269.0,57264.0,1.77281232]
[1720764472571,0.001,57269.0,57264.0,1.42355332]
[1720764472794,0.001,57269.0,57264.0,1.77281232]
[1720764473516,0.001,57269.0,57264.0,1.95881232]
[1720764473695,0.001,57269.0,57264.0,1.98681232]
[1720764474100,0.001,57269.0,57264.0,2.50637132]
[1720764474523,0.001,57269.0,57264.0,2.52037132]
[1720764474909,0.001,57269.0,57264.0,2.50637132]
[1720764475114,0.001,57269.0,57264.0,2.52037132]
[1720764475313,0.001,57269.0,57264.0,3.02585902]
[1720764475584,0.001,57269.0,57264.0,3.12585902]
[1720764475713,0.001,57269.0,57264.0,3.13985902]
[1720764476531,0.001,57269.0,57264.0,3.12585902]
[1720764476926,0.001,57269.0,57264.0,3.13985902]
[1720764477128,0.001,57269.0,57265.0,2.47044432]
[1720764477368,0.001,57269.0,57265.0,2.6816222]
[1720764477727,0.001,57269.0,57265.0,2.67855867]
[1720764478148,0.001,57269.0,57265.0,3.02781167]
[1720764478740,0.001,57269.0,57266.0,3.17256432]
[1720764478940,0.001,57269.0,57268.0,1.27555832]
[1720764479320,0.00684683,57273.0,57272.0,1.24201132]
[1720764479532,0.00698261,57281.0,57280.0,2.61387332]
[1720764479744,0.0055057,57287.0,57280.0,2.61387332]
[1720764479745,0.0055057,57287.0,57286.0,1.62451832]
[1720764479951,0.0055057,57287.0,57286.0,2.58586832]
[1720764480150,0.0055057,57287.0,57286.0,2.79026832]
[1720764480371,0.0055057,57287.0,57286.0,2.05684332]
[1720764480652,0.0055057,57287.0,57286.0,0.93859332]
[1720764480864,0.0055057,57287.0,57286.0,1.48471832]
[1720764481207,0.0055057,57287.0,57286.0,1.49871832]
[1720764481436,0.0055057,57287.0,57286.0,1.317312]
[1720764481632,0.0055057,57287.0,57286.0,1.331312]
[1720764481787,0.0055057,57287.0,57286.0,1.51271832]
[1720764482755,0.0055057,57287.0,57286.0,0.39980632]
[1720764482954,0.0055057,57287.0,57286.0,0.06140632]
[1720764483184,0.1800647,57287.0,57286.0,0.06140632]
[1720764483372,0.1800647,57287.0,57286.0,0.07540632]
[1720764483373,0.0055057,57287.0,57286.0,0.07540632]
[1720764483572,0.01723488,57287.0,57286.0,0.07540632]
[1720764483902,0.01723488,57287.0,57286.0,0.06140632]
[1720764484108,0.01723488,57287.0,57286.0,0.19080632]
[1720764484312,0.0055057,57287.0,57286.0,1.38801832]
[1720764484520,0.0055057,57287.0,57286.0,1.42901832]
[1720764485314,0.0055057,57287.0,57286.0,0.05840632]
[1720764485468,0.0055057,57287.0,57286.0,0.35645898]
[1720764485682,0.0055057,57287.0,57286.0,1.01148398]
[1720764485870,0.0055057,57287.0,57286.0,1.06228398]
[1720764486222,0.0055057,57287.0,57286.0,1.76053398]
[1720764486759,0.0055057,57287.0,57286.0,1.76453398]
[1720764487237,0.0055057,57287.0,57286.0,2.06053398]
[1720764487435,0.0055057,57287.0,57286.0,2.15883398]
[1720764487612,0.0055057,57287.0,57286.0,2.16934332]
[1720764487815,0.0055057,57287.0,57286.0,1.97104332]
[1720764488019,0.0055057,57287.0,57286.0,1.95704332]
[1720764488198,0.0055057,57287.0,57286.0,1.97104332]
[1720764488896,0.0055057,57287.0,57286.0,1.78504332]
[1720764489096,0.0055057,57287.0,57286.0,1.87104332]
[1720764489303,0.0055057,57287.0,57286.0,1.97104332]
[1720764489530,0.0055057,57287.0,57286.0,1.88504332]
[1720764489732,0.0055057,57287.0,57286.0,1.97104332]
[1720764489931,0.0055057,57287.0,57286.0,1.87104332]
[1720764490139,0.0055057,57287.0,57286.0,1.817637]
[1720764490533,0.0055057,57287.0,57286.0,1.98504332]
[1720764490764,0.0055057,57287.0,57286.0,1.43591832]
[1720764490960,0.0055057,57287.0,57286.0,1.31591832]
[1720764491160,0.0055057,57287.0,57286.0,1.53591832]
[1720764491504,0.0055057,57287.0,57286.0,1.31591832]
[1720764491789,0.0055057,57287.0,57286.0,1.88504332]
[1720764492139,0.0055057,57287.0,57286.0,2.18504332]
[1720764493830,0.0055057,57287.0,57286.0,2.36934332]
[1720764494362,0.0055057,57287.0,57286.0,2.71846832]
[1720764494565,1e-08,57289.0,57288.0,1.78930132]
[1720764494745,0.0059301,57293.0,57292.0,0.56740632]
[1720764494950,0.0059301,57293.0,57292.0,2.23802867]
[1720764495599,0.0059301,57293.0,57292.0,3.08711667]
[1720764495826,0.001,57309.0,57299.0,1.23397532]
[1720764496034,0.001,57309.0,57299.0,1.85946732]
[1720764496240,0.001,57309.0,57299.0,1.95946732]
[1720764496447,0.001,57309.0,57299.0,1.30602132]
[1720764496658,0.0346,57305.0,57299.0,0.04740632]
[1720764497274,0.0449,57306.0,57299.0,0.22192932]
[1720764497490,0.07259368,57317.0,57305.0,0.04740632]
[1720764497683,0.348955,57314.0,57305.0,0.04740632]
[1720764497904,0.348967,57312.0,57303.0,0.04740632]
[1720764498040,0.174499,57307.0,57301.0,0.04740632]
[1720764498225,0.174499,57307.0,57300.0,0.04918967]
[1720764498226,0.174501,57307.0,57300.0,0.04918967]
[1720764498432,0.174503,57306.0,57300.0,0.0522532]
[1720764498697,0.174503,57306.0,57301.0,0.04740632]
[1720764498906,0.348997,57307.0,57301.0,0.04740632]
[1720764498907,0.174499,57307.0,57301.0,0.04740632]
[1720764499111,0.174499,57307.0,57303.0,0.007]
[1720764499357,0.174499,57307.0,57301.0,0.04740632]
[1720764499557,0.174499,57307.0,57300.0,0.04918967]
[1720764499762,0.174502,57306.0,57300.0,0.05318967]
[1720764499968,0.174502,57306.0,57300.0,0.04918967]
[1720764500386,0.174502,57306.0,57303.0,0.003]
[1720764500594,0.1,57313.0,57303.0,0.004]
[1720764500595,0.59611568,57304.0,57303.0,0.004]
[1720764501024,0.59611568,57304.0,57303.0,0.003]
[1720764501025,0.94513068,57304.0,57303.0,0.003]
[1720764501428,0.872537,57304.0,57303.0,0.003]
[1720764501833,0.523522,57304.0,57303.0,0.003]
[1720764502032,0.59611568,57304.0,57303.0,0.003]
[1720764502237,0.174517,57301.0,57300.0,0.002]
[1720764502439,0.174517,57301.0,57300.0,0.005]
[1720764502639,0.174517,57301.0,57300.0,0.003]
[1720764502848,0.174524,57299.0,57295.0,0.13252067]
[1720764503414,0.349051,57299.0,57295.0,0.08511435]
[1720764503615,0.174536,57295.0,57292.0,0.04998035]
[1720764504036,0.174536,57295.0,57288.0,0.13252067]
[1720764504372,0.174536,57295.0,57289.0,0.04740632]
[1720764504588,0.174536,57295.0,57294.0,0.08511435]
[1720764504789,0.349032,57302.0,57288.0,0.08511435]
[1720764504790,0.07259368,57296.0,57288.0,0.08511435]
[1720764505001,0.174553,57289.0,57288.0,0.08511435]
[1720764505492,0.349094,57291.0,57283.0,0.049092]
[1720764505493,0.174568,57284.0,57283.0,0.049092]
[1720764505639,0.523705,57284.0,57283.0,0.049092]
[1720764505840,0.174578,57281.0,57277.0,0.04740632]
[1720764506062,0.349153,57282.0,57277.0,0.04740632]
[1720764506586,0.349153,57282.0,57281.0,0.08511435]
[1720764506587,0.174574,57282.0,57281.0,0.08511435]
[1720764506791,0.174572,57283.0,57281.0,0.08511435]
[1720764507025,0.349095,57291.0,57284.0,0.04740632]
[1720764507171,0.17259368,57293.0,57289.0,0.08511435]
[1720764507172,0.274552,57290.0,57289.0,0.08511435]
[1720764507378,0.174547,57291.0,57289.0,0.08511435]
[1720764507722,0.1,57293.0,57289.0,0.13252067]
[1720764507723,0.1,57290.0,57289.0,0.13252067]
[1720764507953,0.1,57293.0,57291.0,0.04740632]
[1720764508295,0.1,57293.0,57292.0,0.04740632]
[1720764508537,0.1,57293.0,57289.0,0.08511435]
[1720764508538,0.274524,57299.0,57295.0,0.04740632]
[1720764508757,0.174527,57298.0,57296.0,0.08511435]
[1720764508968,0.1,57297.0,57296.0,0.08511435]
[1720764509594,0.174527,57298.0,57296.0,0.08511435]
[1720764509595,0.348997,57307.0,57296.0,0.13252067]
[1720764509838,0.174502,57306.0,57303.0,0.00306353]
[1720764510455,0.174502,57306.0,57302.0,0.08511435]
[1720764511089,0.1,57305.0,57302.0,0.08511435]
[1720764511294,0.174509,57304.0,57302.0,0.08511435]
[1720764511491,0.1,57303.0,57302.0,0.08511435]
[1720764513753,0.1,57303.0,57302.0,0.06011435]
[1720764514197,0.1,57303.0,57302.0,0.06411435]
[1720764514863,0.1,57303.0,57302.0,0.006]
[1720764515069,0.174508,57304.0,57303.0,0.00306353]
[1720764515268,0.274508,57304.0,57303.0,0.00306353]
[1720764515421,0.274508,57304.0,57302.0,0.006]
[1720764515622,0.1,57303.0,57302.0,0.006]
[1720764516058,0.1,57303.0,57298.0,0.04740632]
[1720764516227,0.1,57303.0,57299.0,0.00306353]
[1720764516632,0.1,57303.0,57297.0,0.00306353]
[1720764516633,0.174517,57301.0,57297.0,0.00306353]
[1720764517458,0.1,57303.0,57299.0,0.00306353]
[1720764517660,0.1,57303.0,57299.0,0.00706353]
[1720764517822,0.174514,57302.0,57297.0,0.00306353]
[1720764518022,0.274511,57303.0,57297.0,0.00306353]
[1720764518310,0.174514,57302.0,57297.0,0.00306353]
[1720764519121,0.1,57303.0,57296.0,0.5]
[1720764519122,0.174526,57298.0,57296.0,0.5]
[1720764519526,0.174526,57298.0,57297.0,0.003]
[1720764519750,0.174526,57298.0,57296.0,0.5]
[1720764519966,0.59618068,57297.0,57296.0,0.5]
[1720764520137,0.94523868,57297.0,57296.0,0.5]
[1720764520368,0.872645,57297.0,57296.0,0.5]
[1720764520743,0.64047648,57297.0,57296.0,0.5]
[1720764520980,0.81500548,57297.0,57296.0,0.5]
[1720764521915,0.46594748,57297.0,57296.0,0.5]
[1720764522743,0.46594748,57297.0,57296.0,0.504]
[1720764523143,0.46594748,57297.0,57296.0,0.5]
[1720764523144,0.53854116,57297.0,57296.0,0.5]
[1720764523349,0.47763846,57297.0,57296.0,0.5]
[1720764523551,0.89929014,57297.0,57296.0,0.5]
[1720764523771,1.34834814,57297.0,57296.0,0.5]
[1720764528402,2.19740614,57297.0,57296.0,0.5]
[1720764529011,1.99740614,57297.0,57296.0,0.5]
[1720764529551,2.02144309,57297.0,57296.0,0.5]
[1720764530086,2.19798849,57297.0,57296.0,0.5]
[1720764530310,2.02144309,57297.0,57296.0,0.5]
[1720764538262,2.19168049,57297.0,57296.0,0.5]
[1720764538531,2.02144309,57297.0,57296.0,0.5]
[1720764540149,1.67238509,57297.0,57296.0,0.5]
[1720764541222,1.87238509,57297.0,57296.0,0.5]
[1720764541330,1.67238509,57297.0,57296.0,0.5]
[1720764542169,1.67238509,57297.0,57296.0,0.46953401]
[1720764543225,1.67238509,57297.0,57296.0,0.24558101]
[1720764543927,1.89962141,57297.0,57296.0,0.18967967]
[1720764544533,1.89962141,57297.0,57296.0,0.16283967]
[1720764545704,2.24867941,57297.0,57296.0,0.16283967]
[1720764545913,1.89962141,57297.0,57296.0,0.16283967]
[1720764546366,1.89962141,57297.0,57296.0,0.10973968]
[1720764546776,0.94539068,57287.0,57286.0,0.04559972]
[1720764546984,1.69450968,57287.0,57286.0,0.03129972]
[1720764547135,0.59635468,57278.0,57277.0,0.51068611]
[1720764547335,0.59636368,57277.0,57276.0,0.1445]
[1720764547576,0.94554368,57277.0,57276.0,0.1445]
[1720764547782,0.95718118,57277.0,57276.0,0.1445]
[1720764549170,0.95718118,57277.0,57276.0,0.1535]
[1720764549567,1.10350479,57277.0,57276.0,0.1535]
[1720764549800,0.95718118,57277.0,57276.0,0.1535]
[1720764550786,0.95818118,57277.0,57276.0,0.1655]
[1720764551753,1.30736118,57277.0,57276.0,0.1655]
[1720764551980,1.1601775,57277.0,57276.0,0.021]
[1720764552404,1.3347675,57277.0,57276.0,0.021]
[1720764553812,1.70392557,57277.0,57276.0,0.021]
[1720764553969,2.05310557,57277.0,57276.0,0.021]
[1720764554391,1.8839475,57277.0,57276.0,0.021]
[1720764556005,1.9839475,57277.0,57276.0,0.021]
[1720764556554,2.01135973,57277.0,57276.0,0.021]
[1720764557134,2.03565581,57277.0,57276.0,0.021]
[1720764557932,1.83565581,57277.0,57276.0,0.021]
[1720764558530,1.80824358,57277.0,57276.0,0.021]
[1720764560050,2.00824358,57277.0,57276.0,0.021]
[1720764560412,1.80824358,57277.0,57276.0,0.021]
[1720764560619,1.87806818,57277.0,57276.0,0.021]
[1720764561039,1.80824358,57277.0,57276.0,0.021]
[1720764561272,2.00824358,57277.0,57276.0,0.021]
[1720764563490,2.00824358,57277.0,57276.0,0.0087453]
[1720764563701,2.1648865,57277.0,57276.0,0.0087453]
[1720764564087,2.00824358,57277.0,57276.0,0.0087453]
[1720764564395,2.52766098,57277.0,57276.0,0.0087453]
[1720764564629,1.222343,57267.0,57266.0,0.0631]
[1720764564833,1.222343,57267.0,57265.0,0.04961074]
[1720764564834,1.147723,57267.0,57265.0,0.04961074]
[1720764565108,0.523879,57265.0,57264.0,0.0757]
[1720764565337,0.973132,57265.0,57264.0,0.0757]
[1720764565539,1.322385,57265.0,57264.0,0.0757]
[1720764565925,1.33383842,57265.0,57264.0,0.0757]
[1720764566476,1.33383842,57265.0,57264.0,0.0827]
[1720764567303,1.33383842,57265.0,57264.0,0.007]
[1720764567932,1.48732226,57265.0,57264.0,0.007]
[1720764568145,1.48832226,57265.0,57264.0,0.007]
[1720764569031,1.68832226,57265.0,57264.0,0.007]
[1720764569239,2.03757526,57265.0,57264.0,0.007]
[1720764569412,2.33757526,57265.0,57264.0,0.007]
[1720764570213,2.33757526,57265.0,57256.0,0.1476]
[1720764570214,1.222557,57257.0,57256.0,0.1476]
[1720764570414,1.322557,57257.0,57256.0,0.1476]
[1720764570702,1.33399016,57257.0,57256.0,0.1476]
[1720764571142,0.98468816,57257.0,57256.0,0.1476]
[1720764571338,0.11143316,57257.0,57256.0,0.1476]
[1720764571575,0.01143316,57257.0,57256.0,0.1476]
[1720764571779,0.01143316,57257.0,57256.0,0.1486]
[1720764571780,0.18708416,57257.0,57256.0,0.1486]